bitfinex/quotes_ETHUSD_20251004
["timestamp","ask_amount","ask_price","bid_price","bid_amount"]
[1759591345271,2.4,4459.0,4458.6,1.17127529]
[1759591345455,14.70712337,4459.6,4458.6,1.17127529]
[1759591345456,2.537,4459.7,4458.6,1.17127529]
[1759591345764,0.4511,4460.2,4458.6,1.17127529]
[1759591345949,0.8791,4460.5,4458.7,0.001]
[1759591346257,0.428,4460.4,4458.7,0.001]
[1759591346465,2.24205912,4460.2,4458.7,0.001]
[1759591346664,2.24210617,4460.1,4458.7,0.001]
[1759591346968,0.4511,4460.3,4458.7,0.001]
[1759591347165,4.64200225,4460.3,4458.7,0.001]
[1759591347364,4.64205447,4460.2,4458.7,0.001]
[1759591347539,0.428,4460.4,4458.7,0.001]
[1759591347540,2.828,4460.4,4458.7,0.001]
[1759591348080,0.428,4460.4,4458.7,0.02342806]
[1759591348628,0.428,4460.4,4458.8,0.001]
[1759591348839,0.428,4460.4,4459.0,2.24264064]
[1759591349065,1.017,4460.8,4459.1,0.001]
[1759591349269,3.417,4460.8,4459.1,0.001]
[1759591349477,0.01,4460.9,4459.1,0.02342605]
[1759591349661,0.01,4460.9,4459.2,0.001]
[1759591349662,2.4,4460.8,4459.2,0.001]
[1759591349847,2.4,4460.8,4459.3,0.12682]
[1759591350178,2.24195421,4460.4,4459.4,14.5]
[1759591350476,2.4,4460.2,4458.6,1.17227529]
[1759591350677,3.41344,4460.1,4458.6,1.17227529]
[1759591350862,0.4724,4460.0,4458.6,1.17227529]
[1759591351037,2.24245534,4459.4,4458.6,1.17227529]
[1759591351910,2.4,4459.5,4458.6,1.17227529]
[1759591352252,2.24250628,4459.3,4458.6,1.17227529]
[1759591352456,2.4,4459.5,4458.6,1.17227529]
[1759591352457,2.24246812,4459.4,4458.6,1.17227529]
[1759591352692,2.4,4459.3,4458.6,1.17227529]
[1759591353501,2.4,4459.5,4458.6,1.17227529]
[1759591354057,0.112,4458.7,4458.6,1.17227529]
[1759591354574,5.11520619,4458.7,4458.6,1.17227529]
[1759591354770,2.8724,4458.7,4458.6,1.17227529]
[1759591355083,5.65624619,4458.7,4458.6,1.17227529]
[1759591356503,3.41344,4458.7,4458.6,1.17227529]
[1759591356685,5.65624619,4458.7,4458.6,1.17227529]
[1759591358597,2.4,4458.7,4458.6,1.17227529]
[1759591358900,2.8724,4458.7,4458.6,1.17227529]
[1759591359450,5.11520619,4458.7,4458.6,1.17227529]
[1759591360405,2.4,4458.7,4458.6,1.17227529]
[1759591360741,2.8724,4458.7,4458.6,1.17227529]
[1759591360907,2.4,4458.7,4458.6,1.17227529]
[1759591361548,0.59033443,4461.0,4458.6,1.29050282]
[1759591361837,1.931,4461.1,4458.8,0.6336]
[1759591362148,0.002,4461.4,4459.0,0.6336]
[1759591362350,0.002,4461.4,4459.6,0.6336]
[1759591362487,0.002,4461.4,4459.6,2.14696]
[1759591362688,2.402,4461.4,4459.7,0.001]
[1759591362950,2.24347288,4461.4,4459.7,0.001]
[1759591363272,2.24150452,4461.3,4459.7,3.1916]
[1759591363565,0.002,4461.4,4459.7,5.43389012]
[1759591363688,0.002,4461.4,4459.7,3.1916]
[1759591363891,2.2434538,4461.4,4459.8,0.470496]
[1759591364327,0.002,4461.4,4459.7,5.43390197]
[1759591364531,0.112,4460.4,4459.8,0.112]
[1759591364833,0.112,4460.4,4459.8,0.113]
[1759591365890,0.4724,4460.7,4459.2,0.001]
[1759591366104,2.8724,4460.7,4459.2,0.001]
[1759591366330,2.24186831,4460.6,4459.2,0.001]
[1759591366546,0.4724,4460.7,4459.1,2.556]
[1759591366893,2.4,4460.6,4458.9,2.556]
[1759591367037,2.2418515,4460.6,4458.9,2.556]
[1759591367203,2.2418515,4460.6,4458.9,0.6336]
[1759591367711,0.4724,4460.7,4458.9,0.6336]
[1759591367912,2.4,4460.8,4459.3,2.24245841]
[1759591368129,2.4,4460.8,4459.4,2.2648709]
[1759591368303,2.4,4460.8,4459.5,2.24240176]
[1759591368706,2.4,4460.8,4459.4,0.02342454]
[1759591368919,2.4,4460.8,4459.4,0.001]
[1759591369344,2.4,4460.8,4459.4,2.57942454]
[1759591369643,2.4,4460.8,4459.4,0.02342454]
[1759591369834,4.64176575,4460.8,4459.4,2.57942454]
[1759591370015,2.4,4460.8,4459.4,2.57942454]
[1759591370428,2.4,4460.8,4459.4,0.001]
[1759591370659,0.002,4460.6,4459.5,2.556]
[1759591370829,0.002,4460.6,4459.6,0.02242353]
[1759591371409,0.002,4460.6,4459.5,2.556]
[1759591371947,2.7007064,4460.5,4458.7,2.4]
[1759591372114,0.4588,4460.5,4459.2,2.556]
[1759591372313,0.4588,4460.5,4458.7,2.4]
[1759591372314,2.24214453,4460.1,4458.7,2.4]
[1759591372509,0.4588,4460.1,4458.6,3.18082133]
[1759591372843,0.4588,4460.0,4458.6,1.17227529]
[1759591373035,2.24227365,4459.8,4458.6,1.17227529]
[1759591373236,0.4588,4460.0,4458.6,1.17227529]
[1759591373237,2.24231771,4459.7,4458.6,1.17227529]
[1759591373432,2.24235492,4459.6,4458.6,1.17227529]
[1759591373826,2.24243009,4459.5,4458.6,1.17227529]
[1759591374442,2.701261,4459.4,4458.6,1.17227529]
[1759591374642,2.4,4459.3,4458.6,1.17227529]
[1759591374883,2.8588,4459.4,4458.6,1.17227529]
[1759591375043,0.4588,4459.4,4458.6,1.17227529]
[1759591375244,0.4588,4459.9,4458.6,1.17227529]
[1759591375655,2.70100874,4459.9,4458.6,1.17227529]
[1759591375860,0.112,4458.8,4458.6,1.17227529]
[1759591377891,0.112,4458.8,4458.6,1.17327529]
[1759591378098,0.112,4458.8,4458.6,1.17227529]
[1759591380406,0.5708,4458.8,4458.6,1.17227529]
[1759591380778,0.112,4458.8,4458.6,1.17227529]
[1759591384103,2.24235927,4459.6,4458.6,1.17227529]
[1759591384300,2.8588,4459.8,4458.6,1.17227529]
[1759591384500,5.10109885,4459.8,4458.6,1.17227529]
[1759591384702,2.8588,4459.8,4458.6,1.17227529]
[1759591384911,2.24230465,4459.7,4458.6,1.17227529]
[1759591385108,2.8588,4459.8,4458.6,1.17227529]
[1759591385407,0.4588,4459.6,4458.6,1.17227529]
[1759591385726,2.4,4459.8,4458.6,1.17227529]
[1759591385934,0.4588,4459.5,4458.6,1.17227529]
[1759591386103,2.24280619,4458.7,4458.6,1.17227529]
[1759591386303,0.4588,4458.7,4458.6,1.17227529]
[1759591386720,2.70160619,4458.7,4458.6,1.17227529]
[1759591387905,5.10160619,4458.7,4458.6,1.17227529]
[1759591389702,7.65260619,4458.7,4458.6,1.17227529]
[1759591390516,7.60260619,4458.7,4458.6,1.17227529]
[1759591391240,7.60260619,4458.7,4458.1,0.01]
[1759591391241,2.24305773,4458.2,4458.1,0.01]
[1759591391400,7.19405773,4458.2,4458.1,0.01]
[1759591392039,20.29670075,4458.2,4458.1,0.01]
[1759591392643,20.75550075,4458.2,4458.1,0.01]
[1759591392820,7.65285773,4458.2,4458.1,0.01]
[1759591393249,5.10185773,4458.2,4458.1,0.01]
[1759591393557,8.28645773,4458.2,4458.1,0.01]
[1759591393931,8.39845773,4458.2,4458.1,0.01]
[1759591394660,7.76485773,4458.2,4458.1,0.01]
[1759591397331,7.30605773,4458.2,4458.1,0.01]
[1759591398369,7.76485773,4458.2,4458.1,0.01]
[1759591400337,2.512,4458.2,4458.1,0.01]
[1759591400538,7.30505773,4458.2,4458.1,0.01]
[1759591400970,5.062,4458.2,4458.1,0.01]
[1759591401559,7.30505773,4458.2,4458.1,0.01]
[1759591401960,7.74945773,4458.2,4458.1,0.01]
[1759591402172,7.30505773,4458.2,4458.1,0.01]
[1759591402506,7.74945773,4458.2,4458.1,0.01]
[1759591402711,2.243259,4457.8,4457.7,1e-08]
[1759591402892,0.6336,4457.5,4457.1,0.01]
[1759591403217,4.64356097,4457.2,4457.1,0.01]
[1759591403500,7.19256097,4457.2,4457.1,0.01]
[1759591403855,7.63696097,4457.2,4457.1,0.01]
[1759591405002,7.63696097,4457.2,4457.1,1e-08]
[1759591405506,8.27056097,4457.2,4457.1,1e-08]
[1759591405701,21.37320399,4457.2,4457.1,1e-08]
[1759591407531,21.82528118,4457.2,4457.1,1e-08]
[1759591407827,6.17363816,4457.2,4457.1,1e-08]
[1759591407983,8.72363816,4457.2,4457.1,1e-08]
[1759591408694,6.17363816,4457.2,4457.1,0.00100001]
[1759591409232,8.72263816,4457.2,4457.1,0.00100001]
[1759591412923,8.83463816,4457.2,4457.1,0.00100001]
[1759591415029,5.20763816,4457.2,4457.1,0.00100001]
[1759591415214,7.75663816,4457.2,4457.1,0.00100001]
[1759591415525,5.20763816,4457.2,4457.1,0.00100001]
[1759591415832,7.75663816,4457.2,4457.1,0.00100001]
[1759591416561,2.80763816,4457.2,4457.1,0.00100001]
[1759591416733,5.35663816,4457.2,4457.1,0.00100001]
[1759591416904,5.20763816,4457.2,4457.1,0.00100001]
[1759591417109,2.66,4457.2,4457.1,0.05200001]
[1759591417316,4.90356097,4457.2,4457.1,0.05200001]
[1759591417517,4.90356097,4457.2,4457.1,0.00100001]
[1759591417518,7.30356097,4457.2,4457.1,0.00100001]
[1759591418042,4.90356097,4457.2,4457.1,0.00100001]
[1759591418254,7.30356097,4457.2,4457.1,0.00100001]
[1759591420133,7.7601697,4457.2,4457.1,0.00100001]
[1759591420460,8.1901697,4457.2,4457.1,0.00100001]
[1759591420639,7.7601697,4457.2,4457.1,0.00100001]
[1759591420956,8.1901697,4457.2,4457.1,0.00100001]
[1759591422441,7.7601697,4457.2,4457.1,0.00100001]
[1759591424969,7.7591697,4457.2,4457.1,0.00100001]
[1759591427853,8.1891697,4457.2,4457.1,0.00100001]
[1759591428022,7.7591697,4457.2,4457.1,0.00100001]
[1759591428619,7.7611697,4457.2,4457.1,0.00100001]
[1759591430053,8.1911697,4457.2,4457.1,0.00100001]
[1759591430466,5.2141697,4457.2,4457.1,0.00100001]
[1759591430618,7.7611697,4457.2,4457.1,0.00100001]
[1759591430860,8.2200697,4457.2,4457.1,0.00100001]
[1759591431474,9.32688663,4457.2,4457.1,0.00100001]
[1759591432298,2.24406444,4456.2,4456.1,0.01]
[1759591432500,7.19006444,4456.2,4456.1,0.01]
[1759591433199,7.64896444,4456.2,4456.1,0.01]
[1759591435623,4.64406444,4456.2,4456.1,0.01]
[1759591435945,4.5200718,4457.2,4456.1,0.01]
[1759591435946,0.45860873,4457.2,4456.1,0.061]
[1759591436098,2.24406444,4456.2,4456.1,0.061]
[1759591436302,2.546,4456.2,4456.1,0.061]
[1759591438131,2.4,4457.1,4456.1,0.061]
[1759591438442,2.547,4457.0,4456.1,0.061]
[1759591439441,2.24391169,4456.6,4456.1,0.061]
[1759591439639,4.79095255,4456.5,4456.1,0.01]
[1759591439847,2.547,4456.4,4456.1,0.01]
[1759591439995,2.547,4456.4,4456.2,0.051]
[1759591440503,2.547,4456.4,4456.3,0.051]
[1759591440705,2.547,4456.4,4456.1,0.01]
[1759591440896,2.547,4456.4,4456.2,0.051]
[1759591441095,2.547,4456.4,4456.3,0.051]
[1759591441537,0.002,4457.2,4456.5,2.2439099]
[1759591441754,0.002,4457.2,4456.7,0.6336]
[1759591442045,0.002,4457.2,4457.0,0.6336]
[1759591442342,0.002,4457.2,4457.1,2.89964742]
[1759591442711,0.002,4457.2,4457.1,2.95064742]
[1759591442911,0.002,4457.2,4457.1,16.33654342]
[1759591443156,0.01,4458.9,4457.1,16.33654342]
[1759591443157,0.01,4458.9,4457.3,0.6336]
[1759591443316,0.01,4458.9,4458.1,2.87670805]
[1759591443516,0.01,4458.9,4458.1,2.89913913]
[1759591443733,0.01,4458.9,4458.1,5.35013913]
[1759591443956,0.01,4458.9,4458.1,5.32770805]
[1759591444540,0.01,4458.9,4458.1,11.77089505]
[1759591445440,0.01,4458.9,4458.1,2.451]
[1759591445640,0.01,4458.9,4455.8,1.52789256]
[1759591445641,0.01,4458.9,4457.4,2.597]
[1759591445797,0.01,4458.9,4455.8,1.52789256]
[1759591446007,2.70170865,4458.7,4456.2,1.582]
[1759591446219,0.4589,4458.7,4456.8,2.24374801]
[1759591446544,0.4589,4458.7,4456.6,2.24382372]
[1759591446731,0.4589,4458.7,4456.7,2.598]
[1759591447047,0.4609,4458.2,4456.4,0.051]
[1759591447211,2.24315058,4458.1,4456.4,0.051]
[1759591447544,0.4589,4458.0,4456.3,0.001]
[1759591447716,2.24331012,4457.7,4456.3,0.001]
[1759591448115,2.24336251,4457.6,4456.3,0.001]
[1759591448532,0.4589,4457.7,4456.3,0.001]
[1759591448840,0.4589,4457.7,4456.3,0.02344014]
[1759591448841,2.70220979,4457.7,4456.3,0.02344014]
[1759591449145,2.24336029,4457.6,4456.3,0.02344014]
[1759591449343,0.4589,4457.7,4456.3,0.02344014]
[1759591449543,0.4589,4457.7,4456.3,0.001]
[1759591449785,2.24360457,4457.2,4456.3,0.001]
[1759591450753,0.4589,4457.3,4456.3,0.001]
[1759591451599,2.70241147,4457.3,4456.3,0.001]
[1759591451818,0.4589,4457.3,4456.3,0.001]
[1759591452311,2.24356097,4457.2,4456.3,0.001]
[1759591452508,2.24361291,4457.1,4456.3,0.001]
[1759591452912,0.4589,4457.1,4456.3,0.001]
[1759591453125,0.112,4456.4,4456.3,0.001]
[1759591453492,0.5709,4456.4,4456.3,0.001]
[1759591454793,0.112,4456.4,4456.3,0.001]
[1759591456636,0.5709,4456.4,4456.3,0.001]
[1759591457230,0.112,4456.4,4456.3,0.001]
[1759591457641,0.5709,4456.4,4456.3,0.001]
[1759591459141,0.112,4456.4,4456.3,0.001]
[1759591460007,0.4589,4456.4,4456.3,0.001]
[1759591460212,2.70286373,4456.4,4456.3,0.001]
[1759591460448,3.19754144,4456.4,4456.3,0.001]
[1759591461362,2.546,4457.0,4456.3,0.001]
[1759591461515,0.4523,4456.4,4456.3,0.001]
[1759591461709,5.24226373,4456.4,4456.3,0.001]
[1759591462810,2.69626373,4456.4,4456.3,0.001]
[1759591463122,5.73627707,4456.4,4456.3,0.001]
[1759591464541,8.76987707,4456.4,4456.3,0.001]
[1759591465326,6.22387707,4456.4,4456.3,0.001]
[1759591465523,8.76987707,4456.4,4456.3,0.001]
[1759591465925,6.22387707,4456.4,4456.3,0.001]
[1759591466333,8.76987707,4456.4,4456.3,0.001]
[1759591466713,6.22387707,4456.4,4456.3,0.001]
[1759591466911,8.76987707,4456.4,4456.3,0.001]
[1759591467852,6.22387707,4456.4,4456.3,0.001]
[1759591468071,8.76987707,4456.4,4456.3,0.001]
[1759591469279,6.22387707,4456.4,4456.3,0.001]
[1759591469437,8.76887707,4456.4,4456.3,0.001]
[1759591469779,8.76987707,4456.4,4456.3,0.001]
[1759591470080,8.88187707,4456.4,4456.3,0.001]
[1759591471963,6.33587707,4456.4,4456.3,0.001]
[1759591472343,5.24997707,4456.4,4456.3,0.001]
[1759591472551,8.24017707,4456.4,4456.3,0.001]
[1759591472737,5.057,4456.4,4456.3,0.001]
[1759591472940,4.90096373,4456.4,4456.3,0.001]
[1759591473175,2.657,4456.4,4456.3,0.001]
[1759591473349,4.90096373,4456.4,4456.3,0.001]
[1759591473550,5.34616373,4456.4,4456.3,0.001]
[1759591473766,8.50516684,4456.4,4456.3,0.001]
[1759591474943,9.13876684,4456.4,4456.3,0.001]
[1759591475369,9.13976684,4456.4,4456.3,0.001]
[1759591475880,5.51496684,4456.4,4456.3,0.001]
[1759591476064,8.06296684,4456.4,4456.3,0.001]
[1759591476267,2.35596373,4456.4,4456.3,0.001]
[1759591476469,4.90396373,4456.4,4456.3,0.001]
[1759591476783,2.66,4456.4,4456.3,0.001]
[1759591476980,0.112,4456.4,4456.3,0.052]
[1759591477142,0.112,4456.4,4456.3,0.001]
[1759591477524,4.79296373,4456.4,4456.3,0.001]
[1759591479893,2.549,4456.4,4456.3,0.001]
[1759591480063,4.79296373,4456.4,4456.3,0.001]
[1759591480450,5.23816373,4456.4,4456.3,0.001]
[1759591480677,5.98636754,4456.4,4456.3,0.001]
[1759591481993,7.63816373,4456.4,4456.3,0.001]
[1759591482193,5.08916373,4456.4,4456.3,0.001]
[1759591482489,8.27276373,4456.4,4456.3,0.001]
[1759591483593,5.27756373,4456.4,4456.3,0.001]
[1759591483769,8.27276373,4456.4,4456.3,0.001]
[1759591484098,9.32442754,4456.4,4456.3,0.001]
[1759591485310,5.69562754,4456.4,4456.3,0.001]
[1759591485521,7.19396373,4456.4,4456.3,0.001]
[1759591486406,4.64396373,4456.4,4456.3,0.001]
[1759591486710,7.63816373,4456.4,4456.3,0.001]
[1759591487405,8.38376373,4456.4,4456.3,0.001]
[1759591487705,9.44652699,4456.4,4456.3,0.001]
[1759591491316,9.91947888,4456.4,4456.3,0.001]
[1759591491710,9.91847888,4456.4,4456.3,0.001]
[1759591491913,6.92527888,4456.4,4456.3,0.001]
[1759591492112,5.86251562,4456.4,4456.3,0.001]
[1759591492318,8.41051562,4456.4,4456.3,0.001]
[1759591492478,5.86251562,4456.4,4456.3,0.001]
[1759591492679,8.85051562,4456.4,4456.3,0.001]
[1759591492879,8.41051562,4456.4,4456.3,0.001]
[1759591493417,5.86251562,4456.4,4456.3,0.001]
[1759591493615,8.41051562,4456.4,4456.3,0.001]
[1759591493792,7.77691562,4456.4,4456.3,0.001]
[1759591494393,5.22891562,4456.4,4456.3,0.001]
[1759591494613,0.47295189,4456.4,4456.3,0.001]
[1759591494805,0.112,4456.4,4456.3,0.052]
[1759591495202,0.47295189,4457.1,4456.3,0.052]
[1759591495526,0.002,4457.2,4456.3,2.29600304]
[1759591495696,0.002,4457.2,4456.5,0.112]
[1759591495893,0.002,4457.2,4456.6,0.02243863]
[1759591496092,0.002,4457.2,4456.6,0.07343863]
[1759591496635,0.002,4457.2,4456.9,0.112]
[1759591496780,2.402,4457.2,4456.3,0.001]
[1759591497120,2.402,4457.2,4456.4,0.051]
[1759591497121,2.55,4457.1,4456.4,0.051]
[1759591497321,2.4,4457.0,4456.4,0.051]
[1759591497684,2.55,4456.9,4456.5,0.02243913]
[1759591497884,0.002,4457.2,4456.6,0.051]
[1759591498089,2.55,4457.1,4456.7,0.02243812]
[1759591498323,0.002,4457.2,4456.8,0.051]
[1759591498478,0.002,4457.2,4456.9,0.02243711]
[1759591498683,0.002,4457.2,4456.9,0.051]
[1759591498884,0.002,4457.2,4457.0,0.051]
[1759591499123,0.002,4457.2,4456.6,0.051]
[1759591500190,0.002,4457.2,4456.7,0.02243812]
[1759591500392,0.002,4457.2,4456.6,0.051]
[1759591501113,0.002,4457.2,4456.7,0.02243812]
[1759591501623,0.002,4457.2,4456.8,0.051]
[1759591502126,0.002,4457.2,4457.1,2.24361131]
[1759591502330,0.002,4457.2,4457.1,2.54875226]
[1759591503029,0.002,4457.2,4457.1,2.68270484]
[1759591503399,0.002,4457.2,4457.1,0.28270484]
[1759591503599,0.002,4457.2,4456.3,2.24496947]
[1759591503827,0.002,4457.2,4456.4,0.051]
[1759591504902,0.002,4457.2,4456.5,0.02243913]
[1759591505429,0.002,4457.2,4456.6,0.051]
[1759591506403,0.002,4457.2,4456.9,2.24366718]
[1759591506607,0.002,4457.2,4457.0,0.02243661]
[1759591506953,0.002,4457.2,4456.9,0.112]
[1759591507242,0.002,4457.2,4456.9,0.163]
[1759591507444,0.002,4457.2,4456.9,0.112]
[1759591507634,0.002,4457.2,4457.0,0.07343661]
[1759591508036,0.002,4457.2,4457.1,0.051]
[1759591508432,0.002,4457.2,4456.9,0.112]
[1759591509032,0.002,4457.2,4457.0,0.051]
[1759591509347,0.002,4457.2,4457.1,0.02243611]
[1759591509647,0.002,4457.2,4457.1,0.23171354]
[1759591509804,0.002,4457.2,4456.5,0.07343913]
[1759591510147,0.002,4457.2,4456.6,2.24386235]
[1759591510351,0.002,4457.2,4456.7,0.02243812]
[1759591510511,0.002,4457.2,4456.4,0.051]
[1759591510710,0.002,4457.2,4456.4,2.29493999]
[1759591511027,0.002,4457.2,4456.5,2.71349627]
[1759591511221,0.002,4457.2,4456.5,0.469594]
[1759591511425,4.32471648,4457.2,4456.5,0.469594]
[1759591511757,4.32471648,4457.2,4456.3,0.001]
[1759591512051,0.002,4457.2,4456.3,0.07444014]
[1759591512641,0.002,4457.2,4456.4,0.051]
[1759591512842,0.002,4457.2,4456.5,0.02243913]
[1759591513045,0.002,4457.2,4457.0,2.24361915]
[1759591513215,0.002,4457.2,4457.1,0.29779802]
[1759591513415,0.002,4457.2,4457.1,0.27536191]
[1759591513632,0.002,4457.2,4457.1,0.051]
[1759591514327,0.002,4457.2,4457.1,0.07343611]
[1759591514651,0.002,4457.2,4457.1,0.051]
[1759591515049,0.002,4457.2,4456.8,2.547]
[1759591515248,0.002,4457.2,4456.9,0.051]
[1759591515437,0.002,4457.2,4457.0,0.2598]
[1759591515633,0.002,4457.2,4457.0,0.3108]
[1759591516867,0.002,4457.2,4457.0,0.2598]
[1759591517071,0.002,4457.2,4457.0,2.8058]
[1759591517368,0.002,4457.2,4457.0,2.546]
[1759591518870,0.002,4457.2,4456.6,2.546]
[1759591519070,0.002,4457.2,4456.7,2.4]
[1759591519276,0.002,4457.2,4457.0,0.112]
[1759591519643,0.002,4457.2,4456.8,0.4946]
[1759591519644,0.44,4457.1,4456.8,0.4946]
[1759591519852,0.114,4457.2,4456.6,0.112]
[1759591521390,0.114,4457.2,4456.6,0.001]
[1759591522960,0.114,4457.2,4456.6,0.02343863]
[1759591524650,0.002,4457.2,4456.6,2.26729251]
[1759591524989,0.002,4457.2,4456.8,0.112]
[1759591525283,0.002,4457.2,4456.9,2.545]
[1759591525592,0.002,4457.2,4457.0,0.02243661]
[1759591525895,0.002,4457.2,4457.1,0.13443611]
[1759591526468,0.002,4457.2,4457.1,0.40443611]
[1759591526704,0.002,4457.2,4457.1,0.78931436]
[1759591526907,0.454,4457.2,4457.1,0.27]
[1759591527208,0.002,4457.2,4457.1,0.27]
[1759591527584,0.454,4457.2,4457.1,0.27]
[1759591531609,2.69756097,4457.2,4457.1,0.27]
[1759591531763,3.2028603,4457.2,4457.1,0.27]
[1759591532102,2.69756097,4457.2,4457.1,0.27]
[1759591532334,5.09756097,4457.2,4457.1,0.27]
[1759591533910,7.64156097,4457.2,4457.1,0.27]
[1759591534317,11.96690166,4457.2,4457.1,0.27]
[1759591534820,2.854,4457.2,4457.1,0.27]
[1759591534985,2.402,4457.2,4457.1,0.27]
[1759591535168,0.002,4457.2,4457.1,0.27]
[1759591538812,0.002,4457.2,4457.1,0.321]
[1759591539173,0.002,4457.2,4457.1,0.34343611]
[1759591539366,0.002,4457.2,4457.1,0.8564462]
[1759591539593,0.002,4457.2,4457.1,3.10005751]
[1759591539793,0.002,4457.2,4457.1,0.8564462]
[1759591540331,0.002,4457.2,4457.1,0.78301009]
[1759591540502,0.002,4457.2,4457.1,0.27]
[1759591541913,0.434,4457.2,4457.1,0.27]
[1759591543545,0.546,4457.2,4457.1,0.27]
[1759591544014,2.78956097,4457.2,4457.1,0.27]
[1759591544214,5.18956097,4457.2,4457.1,0.27]
[1759591544406,5.93286323,4457.2,4457.1,0.27]
[1759591545030,3.68930226,4457.2,4457.1,0.27]
[1759591545194,5.93286323,4457.2,4457.1,0.27]
[1759591545390,8.47486323,4457.2,4457.1,0.27]
[1759591546312,21.5869978,4457.2,4457.1,0.27]
[1759591546724,22.2205978,4457.2,4457.1,0.27]
[1759591547956,5.93286323,4457.2,4457.1,0.27]
[1759591548252,8.47486323,4457.2,4457.1,0.27]
[1759591552717,5.68730226,4457.2,4457.1,0.27]
[1759591552914,8.04286323,4457.2,4457.1,0.27]
[1759591553462,7.74666097,4457.2,4457.1,0.27]
[1759591553762,20.85879554,4457.2,4457.1,0.27]
[1759591554070,21.49239554,4457.2,4457.1,0.27]
[1759591555145,7.74666097,4457.2,4457.1,0.27]
[1759591555329,7.29956097,4457.2,4457.1,0.27]
[1759591556137,7.74666097,4457.2,4457.1,0.27]
[1759591556543,8.74567371,4457.2,4457.1,0.27]
[1759591557922,8.74567371,4457.2,4457.1,0.271]
[1759591558537,9.37927371,4457.2,4457.1,0.271]
[1759591559749,9.85136393,4457.2,4457.1,0.271]
[1759591560362,15.04304901,4457.2,4457.1,0.271]
[1759591560724,14.57095879,4457.2,4457.1,0.271]
[1759591562590,15.04309366,4457.2,4457.1,0.271]
[1759591562988,2.24381268,4456.7,4456.6,0.001]
[1759591563187,13.12509776,4456.7,4456.6,0.001]
[1759591563500,13.57219776,4456.7,4456.6,0.001]
[1759591566800,4.75581268,4456.7,4456.6,0.001]
[1759591566999,7.29881268,4456.7,4456.6,0.001]
[1759591567397,13.44475325,4456.7,4456.6,0.001]
[1759591569489,8.25306817,4456.7,4456.6,0.001]
[1759591569690,8.14106817,4456.7,4456.6,0.001]
[1759591570190,5.59806817,4456.7,4456.6,0.001]
[1759591570412,8.14106817,4456.7,4456.6,0.001]
[1759591570725,5.89725549,4456.7,4456.6,0.001]
[1759591570927,7.18681268,4456.7,4456.6,0.001]
[1759591571224,4.64381268,4456.7,4456.6,0.001]
[1759591571427,7.18681268,4456.7,4456.6,0.001]
[1759591571930,4.943,4456.7,4456.6,0.001]
[1759591572428,7.18681268,4456.7,4456.6,0.001]
[1759591572730,4.78681268,4456.7,4456.6,0.001]
[1759591573852,6.00903467,4456.7,4456.6,0.001]
[1759591574038,6.45613467,4456.7,4456.6,0.001]
[1759591574914,6.00903467,4456.7,4456.6,0.001]
[1759591577927,6.45613467,4456.7,4456.6,0.001]
[1759591578450,6.00903467,4456.7,4456.6,0.001]
[1759591579554,6.45613467,4456.7,4456.6,0.001]
[1759591579721,7.04156464,4456.7,4456.6,0.001]
[1759591580226,6.56813467,4456.7,4456.6,0.001]
[1759591580631,7.0415553,4456.7,4456.6,0.001]
[1759591581440,6.5944553,4456.7,4456.6,0.001]
[1759591581647,6.12103467,4456.7,4456.6,0.001]
[1759591581946,6.594539,4456.7,4456.6,0.001]
[1759591582151,6.12103467,4456.7,4456.6,0.001]
[1759591583282,6.59453932,4456.7,4456.6,0.001]
[1759591584149,7.05683932,4456.7,4456.6,0.001]
[1759591584348,4.35072664,4456.7,4456.6,0.001]
[1759591584558,6.59453932,4456.7,4456.6,0.001]
[1759591584856,0.58550465,4456.7,4456.6,0.001]
[1759591585084,2.653,4456.7,4456.6,0.001]
[1759591585270,2.653,4456.7,4456.6,0.052]
[1759591585470,3.12650465,4456.7,4456.6,0.001]
[1759591585971,2.653,4456.7,4456.6,0.001]
[1759591587215,4.78481268,4456.7,4456.6,0.001]
[1759591587504,2.541,4456.7,4456.6,0.001]
[1759591589299,0.002,4457.1,4456.6,0.001]
[1759591589498,2.542,4457.0,4456.7,0.051]
[1759591589676,2.542,4457.0,4456.8,0.051]
[1759591590719,0.002,4457.1,4456.9,0.07343711]
[1759591590902,0.002,4457.1,4457.0,0.051]
[1759591591599,0.002,4457.1,4457.0,0.07343661]
[1759591591909,0.002,4457.1,4457.0,0.28272411]
[1759591592501,0.002,4457.1,4457.0,0.051]
[1759591593117,0.002,4457.1,4457.0,0.07343661]
[1759591593628,0.002,4457.1,4457.0,5.35069826]
[1759591593810,0.002,4457.1,4457.0,5.32826165]
[1759591594209,0.002,4457.1,4457.0,3.0846]
[1759591594730,0.002,4457.1,4457.0,6.11518909]
[1759591595746,0.002,4457.1,4457.0,8.65618909]
[1759591595905,0.002,4457.1,4457.0,8.92126193]
[1759591596442,0.002,4457.1,4457.0,21.97232193]
[1759591596644,0.002,4457.6,4457.5,2.87700998]
[1759591596843,0.002,4457.6,4457.5,20.58092491]
[1759591597042,0.002,4457.6,4457.5,14.77783725]
[1759591597217,0.002,4457.6,4457.5,6.43671025]
[1759591597628,0.002,4457.6,4457.5,8.95055025]